Workbook

Sheet паспорт
A1: ПАТ "УКРТРАНСГАЗ" | G1: ПАСПОРТ ФІЗИКО-ХІМІЧНИХ ПОКАЗНИКІВ ПРИРОДНОГО ГАЗУ №520
A2: Філія "УМГ " Прикарпаттрансгаз" | G2: переданого Закарпатським ЛВУМГ та прийнятого ПАТ "Закарпатгаз"
A3: ГКС Ужгород Закарпатського ЛВУМГ | G3: маршрут №520
A4: Вимірювальна хіміко-аналітична лабораторія
A5: Свідоцтво № РВ-0033-13 чинне до 26.06.2018 р. | N5: по газопроводу "УПУ" | V5: за період з | X5: 2017-03-01 | Z5: по | AA5: 2017-03-31
A7: Число місяця | B7: Компонентний склад, % мол. | N7: Фізико-хімічні показники газу обчислені на основі компонентного складу, 101,325 кПа | X7: Температура точки роси вологи (Р = 3.92 МПа), ºС | Y7: Температура точки роси вуглеводнів, ºС | Z7: Вміст сірководню, г/м3 | AA7: Вміст меркаптанової сірки, г/м3 | AB7: Вміст механічних домішок, г/м3
N8: Густина абсолютна, кг/м3, при 20 ºС, | O8: Температура вимірювання/згоряння при 20/25°С
B9: метан, С1 | C9: етан, С2 | D9: пропан, С3 | E9: ізо-бутан, і-С4 | F9: н-бутан, н-С4 | G9: нео-пентан, нео-С5 | H9: ізо-пентан, і-С5 | I9: н-пентан, н-С5 | J9: гексани та вищі, С6+ | K9: кисень, О2 | L9: азот, N2 | M9: діоксид вуглецю, CО2 | O9: Теплота згоряння нижча | R9: Теплота згоряння вища | U9: Число Воббе вище
O10: ккал/м3 | P10: МДж/м3 | Q10: кВт⋅год/м3 | R10: ккал/м3 | S10: МДж/м3 | T10: кВт⋅год/м3 | U10: ккал/м3 | V10: МДж/м3 | W10: кВт⋅год/м3
A11: 1 | O11: =P11*238.8459 -> 8163.752862 | P11: 34.18 | Q11: =P11/3.6 -> 9.494444444 | R11: =S11*238.8459 -> 9052.25961 | S11: 37.9 | T11: =S11/3.6 -> 10.52777778 | U11: =V11*238.8459 -> 11908.85657 | V11: 49.86 | W11: =V11/3.6 -> 13.85 | AC11: =SUM(B11:M11)+$K$42+$N$42 -> 0 | AD11: =IF(AC11=100,"ОК"," ") -> 
A12: 2 | O12: =P12*238.8459 -> 8163.752862 | P12: 34.18 | Q12: 9.494444444 | R12: =S12*238.8459 -> 9052.25961 | S12: 37.9 | T12: 10.52777778 | U12: =V12*238.8459 -> 11908.85657 | V12: 49.86 | W12: 13.85 | AC12: =SUM(B12:M12)+$K$42+$N$42 -> 0
A13: 3 | O13: 8163.752862 | P13: 34.18 | Q13: 9.494444444 | R13: 9052.25961 | S13: 37.9 | T13: 10.52777778 | U13: 11908.85657 | V13: 49.86 | W13: 13.85 | AC13: =SUM(B13:M13)+$K$42+$N$42 -> 0
A14: 4 | O14: 8163.752862 | P14: 34.18 | Q14: 9.494444444 | R14: 9052.25961 | S14: 37.9 | T14: 10.52777778 | U14: 11908.85657 | V14: 49.86 | W14: 13.85 | AC14: =SUM(B14:M14)+$K$42+$N$42 -> 0
A15: 5 | O15: 8163.752862 | P15: 34.18 | Q15: 9.494444444 | R15: 9052.25961 | S15: 37.9 | T15: 10.52777778 | U15: 11908.85657 | V15: 49.86 | W15: 13.85 | AC15: =SUM(B15:M15)+$K$42+$N$42 -> 0
A16: 6 | O16: 8163.752862 | P16: 34.18 | Q16: 9.494444444 | R16: 9052.25961 | S16: 37.9 | T16: 10.52777778 | U16: 11908.85657 | V16: 49.86 | W16: 13.85 | AC16: =SUM(B16:M16)+$K$42+$N$42-K16 -> 0
A17: 7 | B17: 96.0336 | C17: 2.1819 | D17: 0.6757 | E17: 0.1055 | F17: 0.101 | G17: 0.0019 | H17: 0.0191 | I17: 0.0138 | J17: 0.0114 | K17: 0.009 | L17: 0.6881 | M17: 0.159 | N17: 0.699 | O17: 8185.248993 | P17: 34.27 | Q17: =P17/3.6 -> 9.519444444 | R17: 9078.532659 | S17: 38.01 | T17: =S17/3.6 -> 10.55833333 | U17: 11918.41041 | V17: 49.9 | W17: =V17/3.6 -> 13.86111111 | X17: -22.8 | Y17: <-20,6 | Z17: 0.0002 | AA17: 0.0003 | AC17: =SUM(B17:M17)+$K$42+$N$42 -> 100 | AD17: ОК
A18: 8 | O18: 8185.248993 | P18: 34.27 | Q18: =P18/3.6 -> 9.519444444 | R18: 9078.532659 | S18: 38.01 | T18: =S18/3.6 -> 10.55833333 | U18: 11918.41041 | V18: 49.9 | W18: =V18/3.6 -> 13.86111111 | AC18: 0
A19: 9 | O19: 8185.248993 | P19: 34.27 | Q19: 9.519444444 | R19: 9078.532659 | S19: 38.01 | T19: 10.55833333 | U19: 11918.41041 | V19: 49.9 | W19: 13.86111111 | AC19: 0
A20: 10 | O20: 8185.248993 | P20: 34.27 | Q20: 9.519444444 | R20: 9078.532659 | S20: 38.01 | T20: 10.55833333 | U20: 11918.41041 | V20: 49.9 | W20: 13.86111111 | AC20: 0
A21: 11 | O21: 8185.248993 | P21: 34.27 | Q21: 9.519444444 | R21: 9078.532659 | S21: 38.01 | T21: 10.55833333 | U21: 11918.41041 | V21: 49.9 | W21: 13.86111111 | AC21: 0
A22: 12 | O22: 8185.248993 | P22: 34.27 | Q22: 9.519444444 | R22: 9078.532659 | S22: 38.01 | T22: 10.55833333 | U22: 11918.41041 | V22: 49.9 | W22: 13.86111111 | AC22: 0
A23: 13 | O23: 8185.248993 | P23: 34.27 | Q23: 9.519444444 | R23: 9078.532659 | S23: 38.01 | T23: 10.55833333 | U23: 11918.41041 | V23: 49.9 | W23: 13.86111111 | AC23: =SUM(B23:M23)+$K$42+$N$42-K23 -> 0
A24: 14 | B24: 95.8606 | C24: 2.2621 | D24: 0.727 | E24: 0.1162 | F24: 0.1129 | G24: 0.0015 | H24: 0.0225 | I24: 0.0163 | J24: 0.015 | K24: 0.0084 | L24: 0.687 | M24: 0.1705 | N24: 0.7008 | O24: 8204.356665 | P24: 34.35 | Q24: =P24/3.6 -> 9.541666667 | R24: 9095.251872 | S24: 38.08 | T24: 10.57777778 | U24: 11925.57579 | V24: 49.93 | W24: 13.86944444 | X24: -19.5 | AB24: 0 | AC24: =SUM(B24:M24)+$K$42+$N$42 -> 100 | AD24: ОК
A25: 15 | O25: 8204.356665 | P25: 34.35 | Q25: 9.541666667 | R25: 9095.251872 | S25: 38.08 | T25: 10.57777778 | U25: 11925.57579 | V25: 49.93 | W25: 13.86944444 | AC25: 0
A26: 16 | O26: 8204.356665 | P26: 34.35 | Q26: 9.541666667 | R26: 9095.251872 | S26: 38.08 | T26: 10.57777778 | U26: 11925.57579 | V26: 49.93 | W26: 13.86944444 | AC26: 0
A27: 17 | O27: 8204.356665 | P27: 34.35 | Q27: 9.541666667 | R27: 9095.251872 | S27: 38.08 | T27: 10.57777778 | U27: 11925.57579 | V27: 49.93 | W27: 13.86944444 | AC27: 0
A28: 18 | O28: 8204.356665 | P28: 34.35 | Q28: =P28/3.6 -> 9.541666667 | R28: 9095.251872 | S28: 38.08 | T28: 10.57777778 | U28: 11925.57579 | V28: 49.93 | W28: 13.86944444 | AC28: 0
A29: 19 | O29: 8204.356665 | P29: 34.35 | Q29: 9.541666667 | R29: 9095.251872 | S29: 38.08 | T29: 10.57777778 | U29: 11925.57579 | V29: 49.93 | W29: 13.86944444 | AC29: 0
A30: 20 | O30: 8204.356665 | P30: 34.35 | Q30: 9.541666667 | R30: 9095.251872 | S30: 38.08 | T30: 10.57777778 | U30: 11925.57579 | V30: 49.93 | W30: 13.86944444 | AC30: =SUM(B30:M30)+$K$42+$N$42-K30 -> 0
A31: 21 | B31: 95.5718 | C31: 2.5601 | D31: 0.7625 | E31: 0.1162 | F31: 0.1208 | G31: 0.0015 | H31: 0.022 | I31: 0.0161 | J31: 0.013 | K31: 0.0042 | L31: 0.6379 | M31: 0.1739 | N31: 0.7028 | O31: 8230.629714 | P31: 34.46 | Q31: 9.572222222 | R31: 9126.301839 | S31: 38.21 | T31: 10.61388889 | U31: 11947.07192 | V31: 50.02 | W31: 13.89444444 | X31: -23.2 | Y31: <-21,0 | Z31: 0.0002 | AA31: 0.0003 | AC31: =SUM(B31:M31)+$K$42+$N$42 -> 100 | AD31: ОК
A32: 22 | O32: 8230.629714 | P32: 34.46 | Q32: 9.572222222 | R32: 9126.301839 | S32: 38.21 | T32: 10.61388889 | U32: 11947.07192 | V32: 50.02 | W32: 13.89444444 | AC32: 0
A33: 23 | O33: 8230.629714 | P33: 34.46 | Q33: 9.572222222 | R33: 9126.301839 | S33: 38.21 | T33: 10.61388889 | U33: 11947.07192 | V33: 50.02 | W33: 13.89444444 | AC33: 0
A34: 24 | O34: 8230.629714 | P34: 34.46 | Q34: 9.572222222 | R34: 9126.301839 | S34: 38.21 | T34: 10.61388889 | U34: 11947.07192 | V34: 50.02 | W34: 13.89444444 | AC34: 0
A35: 25 | O35: 8230.629714 | P35: 34.46 | Q35: 9.572222222 | R35: 9126.301839 | S35: 38.21 | T35: 10.61388889 | U35: 11947.07192 | V35: 50.02 | W35: 13.89444444 | AC35: 0
A36: 26 | O36: 8230.629714 | P36: 34.46 | Q36: 9.572222222 | R36: 9126.301839 | S36: 38.21 | T36: 10.61388889 | U36: 11947.07192 | V36: 50.02 | W36: 13.89444444 | AC36: 0
A37: 27 | O37: 8230.629714 | P37: 34.46 | Q37: 9.572222222 | R37: 9126.301839 | S37: 38.21 | T37: 10.61388889 | U37: 11947.07192 | V37: 50.02 | W37: 13.89444444 | AC37: =SUM(B37:M37)+$K$42+$N$42 -> 0 | AD37: =IF(AC37=100,"ОК"," ") -> 
A38: 28 | B38: 95.4115 | C38: 2.5544 | D38: 0.8576 | E38: 0.1382 | F38: 0.1334 | G38: 0.0017 | H38: 0.0252 | I38: 0.018 | J38: 0.0153 | K38: 0.0032 | L38: 0.6461 | M38: 0.1954 | N38: 0.705 | O38: 8249.737386 | P38: 34.54 | Q38: 9.594444444 | R38: 9145.409511 | S38: 38.29 | T38: 10.63611111 | U38: 11951.84884 | V38: 50.04 | W38: 13.9 | X38: -22.9 | AB38: 0 | AC38: 100 | AD38: ОК
A39: 29 | O39: 8249.737386 | P39: 34.54 | Q39: 9.594444444 | R39: 9145.409511 | S39: 38.29 | T39: 10.63611111 | U39: 11951.84884 | V39: 50.04 | W39: 13.9 | AC39: 0
A40: 30 | O40: 8249.737386 | P40: 34.54 | Q40: 9.594444444 | R40: 9145.409511 | S40: 38.29 | T40: 10.63611111 | U40: 11951.84884 | V40: 50.04 | W40: 13.9 | AC40: 0
A41: 31 | O41: 8249.737386 | P41: 34.54 | Q41: 9.594444444 | R41: 9145.409511 | S41: 38.29 | T41: 10.63611111 | U41: 11951.84884 | V41: 50.04 | W41: 13.9 | AC41: 0
A42: Рівень одоризації відповідає чинним нормативним документам | O42: 8199.936365 | P42: 34.33149309 | Q42: 9.536525858 | R42: 9092.222722 | S42: 38.06731755 | T42: 10.57425488
H43: Середньозважене значення теплоти згоряння:
B46: Начальник Закарпатського ЛВУМГ | O46: Лукіта В.Ф. | U46: 03.04.17.
D47: Підрозділу підприємства, якому підпорядкована лабораторія | O47: прізвище | R47: підпис | U47: дата
B48: Начальник ВХАЛ | O48: Завадяк О.В. | U48: 03.04.17.
E49: Лабораторія, де здійснювались аналізи газу | O49: прізвище | R49: підпис | U49: дата
B50: Начальник метрологічної служби | O50: Водянчук М.В. | U50: 03.04.17.
E51: Метрологічна служба, яка вимірює обсяги газу | O51: прізвище | R51: підпис | U51: дата

Sheet додаток
A2: Додаток до паспорту фізико-хімічних показників природного газу № 520
A4: Область | B4: ГРС, прямий споживач | C4: Cередньозважене значення вищої теплоти згоряння
C5: МДж/м³ | D5: ккал/м³ | E5: кВт*год./м³
A6: Закарпатська область | B6: ГРС Жнятино | C6: 38.07 | D6: 9092 | E6: 10.57
A7: Середньозважене значення вищої теплоти згоряння по маршруту № 520 | C7: 38.07 | D7: 9092 | E7: 10.57
A11: Начальник управління Закарпатського ЛВУМГ | D11: Лукіта В.Ф. | F11: 03.04.17р.
A12: Підрозділу підприємства, якому підпорядкована лабораторія | D12: прізвище | E12: підпис | F12: дата
A13: Начальник ВХАЛ | D13: Завадяк О.В. | F13: 03.04.17р.
A14: Лабораторія, де здійснювалось вимірювання газу | D14: прізвище | E14: підпис | F14: дата
A15: Начальник метрологічної служби | D15: Водянчук М.В. | F15: 03.04.17р.
A16: Підрозділу, відповідального за облік газу за маршрутом | D16: прізвище | E16: підпис | F16: дата

Sheet variablesList (hidden)
A1: 3 | B1: x:\gaysin | C1: 10, 11, 24, 25, 127, 128, 132, 180, 207, 215 | D1: x:\
B2: x:\Illinci
B3: x:\Talne
